Cogmind - Beta 14 @@@ ROGUE MODE // 2024.10.27 @ 17:27:05 Player: jimmyl Result: Self-destructed Performance ------------- Evolutions (5) 2500 Regions Visited (10) 2000 Robots Destroyed (87) 435 Value Destroyed (2606) 2606 Prototype IDs (3) 60 Alien Tech Used (0) 0 Bonus (360) 360 TOTAL SCORE: 7961 Bonus ------- High Alert Combat Kills 24 Follower Combat Kills 36 Registered with UFD 300 Cogmind --------- Core Integrity 891/1000 Matter 295/300 Energy 150/150 System Corruption 4% Temperature Cool (0) Movement Core (300) Ox5 Location -5/Factory Parts ------- > --- POWER (2) -------- Backup Power III Micro Fission Core > --- PROPULSION (3) --- (None) > --- UTILITY (10) ----- Advanced Signal Interpreter Advanced Targeting Computer Backup Plating III > --- WEAPON (2) ------- Thermic Laser Thermic Laser > --- INVENTORY (5) ---- Advanced Plasma Cannon KE Penetrator Magnetic Acceleration Cannon DRS Beacon (Ready) Peak State ------------ > --- POWER ------------ Improved Ion Engine > --- PROPULSION ------- Light Treads Improved Treads Medium Treads > --- UTILITY ---------- Advanced Heat Sink Large Storage Unit Matter Compressor Visual Processing Unit Advanced Signal Interpreter Targeting Computer Transmission Jammer > --- WEAPON ----------- Heavy Laser Gatling Laser > --- INVENTORY -------- Improved Treads Compact Wheel Compact Wheel Improved Cooling System High-capacity Matter Pod Advanced Signal Interpreter Improved Medium Laser Heavy Assault Rifle Flak Cannon Flak Cannon Magnetic Acceleration Cannon Mini Grenade Launcher Heavy Rocket Launcher DRS Beacon [Rating: 44] Favorites ----------- Power Improved Ion Engine Engine Improved Ion Engine Power Core Micro Fission Core Propulsion Light Treads Treads Light Treads Leg Aluminum Leg Wheel Compact Wheel Hover Unit Backup Propulsion III Utility Large Storage Unit Device Transmission Jammer Storage Large Storage Unit Processor Targeting Computer Protection Light Armor Plating Weapon Flak Cannon Energy Gun Thermic Laser Ballistic Gun Heavy Assault Rifle Ballistic Cannon Flak Cannon Launcher Mini Grenade Launcher Build | -11 -10 -10 -9 -9 -9 -9 -6 -6 -6 -5 ------- Run | Yrd Mat Min Mat Sto Rec Scr Fac Low Low Fac Slots Evolved 10 | . . . 2 . . . 6 . . 2 Power 1 | . . . . . . . 1 . . . Propulsion 1 | . . . . . . . 1 . . . Utility 8 | . . . 2 . . . 4 . . 2 Weapon . | . . . . . . . . . . . Parts Attached 67 | . 5 1 16 6 3 5 11 9 4 7 Power 4 | . . . 1 1 . . 1 . . 1 Engine 3 | . . . 1 1 . . 1 . . . Core 1 | . . . . . . . . . . 1 Reactor . | . . . . . . . . . . . Propulsion 14 | . 2 1 3 2 1 1 1 3 . . Treads 12 | . 2 1 3 2 1 1 1 1 . . Leg . | . . . . . . . . . . . Wheel 2 | . . . . . . . . 2 . . Hover . | . . . . . . . . . . . Flight . | . . . . . . . . . . . Utility 21 | . 2 . 4 1 . 2 7 1 1 3 Device 6 | . . . . . . . 4 1 . 1 Storage 3 | . 1 . 1 . . 1 . . . . Processor 5 | . . . 1 . . . 2 . . 2 Hackware . | . . . . . . . . . . . Protection 7 | . 1 . 2 1 . 1 1 . 1 . Artifact . | . . . . . . . . . . . Weapon 28 | . 1 . 8 2 2 2 2 5 3 3 Energy Gun 8 | . . . 1 1 . . . 3 . 3 Energy Cannon . | . . . . . . . . . . . Ballistic Gun 2 | . . . 2 . . . . . . . Ballistic Cannon 12 | . 1 . 2 1 2 2 2 . 2 . Launcher 6 | . . . 3 . . . . 2 1 . Special Weapon . | . . . . . . . . . . . Impact Weapon . | . . . . . . . . . . . Slashing Weapon . | . . . . . . . . . . . Piercing Weapon . | . . . . . . . . . . . Special Melee Weapon . | . . . . . . . . . . . Unidentified Prototypes 1 | . . . . 1 . . . . . . Parts Lost 30 | . . 1 3 1 . . 4 9 8 4 Power 4 | . . . . 1 . . 1 1 . 1 Propulsion 11 | . . 1 2 . . . . 4 2 2 Utility 7 | . . . . . . . 1 2 3 1 Weapon 8 | . . . 1 . . . 2 2 3 . Highest Loss Streak 8 | . . 1 1 1 . . 2 4 8 2 To Critical Strikes 1 | . . . 1 . . . . . . . Average Slot Usage (%) 90 | . 83 85 93 99 99 100 82 73 64 39 Engine 9 | . 14 14 11 10 11 11 5 2 . 5 Treads 19 | . 26 28 21 22 22 22 13 7 . . Device 1 | . . . . . . . 10 11 5 2 Storage 18 | . 14 14 22 22 22 22 13 13 12 . Processor 10 | . . . 11 11 11 11 18 20 18 9 Protection 9 | . 4 14 10 11 11 11 6 . 3 4 Energy Gun 1 | . 18 . . . . . . 4 2 9 Ballistic Cannon 16 | . 4 14 14 22 21 22 12 2 5 . Peak Build Rating 44 | . 7 7 15 16 17 27 43 44 33 39 Average Rating 19 | . 6 6 11 15 16 23 39 35 28 28 On Entrance 15 | 6 6 6 7 15 16 11 27 43 29 2 Naked Turns 12 | . . . . . . . . . 4 8 Heaviest Build 51 | 13 31 31 42 44 44 48 51 49 41 19 Greatest Support 71 | 20 40 40 40 40 43 51 71 71 32 16 Greatest Overweight (x) 5 | . . . 1 1 1 1 . 1 1 5 Average Overweight (x) . | . . . . . . . . . . 1 Largest Inventory Capacity 15 | . 15 15 15 15 15 15 15 15 15 5 Average Capacity 14 | . 14 15 15 15 15 15 15 15 14 5 Most Carried 15 | . 8 15 15 15 15 15 15 14 10 5 Average Carried 12 | . 6 11 11 14 14 13 13 11 9 4 Final Capacity 15 | 8 15 15 15 15 15 15 15 15 5 5 Final Carried 15 | 6 8 11 15 15 15 15 14 9 5 4 Class Distribution -------------------- 75% | Mutant 24% | Scavenger-Mutant Dominant Class ---------------- Mutant | -10/Materials Mutant | -10/Mines Mutant | -9/Materials Scavenger-Mutant | -9/Storage Mutant | -9/Recycling Mutant | -9/Scraptown Scavenger-Mutant | -6/Factory Mutant | -6/Lower Caves Mutant | -6/Lower Caves Mutant | -5/Factory Resources | -11 -10 -10 -9 -9 -9 -9 -6 -6 -6 -5 ----------- Run | Yrd Mat Min Mat Sto Rec Scr Fac Low Low Fac Matter Collected 2784 | 190 . 241 613 497 163 381 105 328 209 57 Remotely . | . . . . . . . . . . . Salvage Created 2442 | . . 118 624 558 163 53 148 347 229 202 Parts 122 | . . 8 55 37 7 . 2 5 6 2 Haulers Intercepted 2 | . . . . 2 . . . . . . Recyclers Shooed 2 | . . 1 . . . . . . . 1 Parts Field Recycled . | . . . . . . . . . . . Retrieved Matter . | . . . . . . . . . . . Parts Self-Destructed 8 | . . . . . . . . 5 3 . Prevented . | . . . . . . . . . . . Kills | -11 -10 -10 -9 -9 -9 -9 -6 -6 -6 -5 ------- Run | Yrd Mat Min Mat Sto Rec Scr Fac Low Low Fac Combat Hostiles Destroyed 65 | . . 4 20 11 3 . 6 11 7 3 Guns 3 | . . . . . . . . 1 . 2 Cannons 35 | . . 3 10 11 3 . 6 . 2 . AOE 26 | . . 1 10 . . . . 10 5 . Classes Destroyed 13 | . . 4 4 1 . . . 3 . 1 Worker 6 | . . 1 3 2 . . . . . . Builder 2 | . . . 2 . . . . . . . Hauler 2 | . . . . 2 . . . . . . Recycler 8 | . . 1 4 2 1 . . . . . Watcher 4 | . . . 3 1 . . . . . . Swarmer 20 | . . 2 12 . . . . 4 2 . Grunt 17 | . . . 4 3 . . 5 2 3 . Brawler 3 | . . . 1 . . . . 1 1 . Duelist 3 | . . . . . . . . 2 1 . Sentry 19 | . . 2 3 8 3 . 1 1 . 1 Hunter 2 | . . . . . . . . . . 2 Behemoth 1 | . . . . . . . . 1 . . Decomposer 1 | . . . . . . . . . 1 . Samaritan 6 | . . . . . . . . 6 . . Best Kill Streak 12 | . . 3 12 3 2 . 3 7 6 2 Combat Bots Only 7 | . . 2 7 3 2 . 3 7 6 2 Max Kills in Single Turn 3 | . . 1 3 1 1 . 1 2 3 1 Gunslinging . | . . . . . . . . . . . Exploded 2 | . . 1 2 . . . . 2 2 . Melee . | . . . . . . . . . . . Uniques/NPCs Destroyed . | . . . . . . . . . . . Combat | -11 -10 -10 -9 -9 -9 -9 -6 -6 -6 -5 -------- Run | Yrd Mat Min Mat Sto Rec Scr Fac Low Low Fac Hostile Shots Fired 439 | . . 33 92 41 14 . 68 95 41 55 Missed 133 | . . 11 24 12 3 . 16 41 11 15 Damage Taken 5098 | . . 371 833 429 163 . 699 1246 753 604 Core 1027 | . . 73 117 29 13 . 73 303 310 109 Absorbed by Shields . | . . . . . . . . . . . Ignored by Resistances 50 | . . . . . . . 50 . . . Core Remaining (%) 62 | 100 . 70 . . . 60 . . 19 . Volleys Fired 215 | . . 21 56 32 9 1 21 49 10 16 Largest 2 | . . 1 2 2 2 2 2 2 2 2 Hottest 170 | . . 35 88 88 88 88 88 149 88 170 Shots Fired 322 | . . 21 59 64 18 2 41 66 18 33 Gun 67 | . . . . . . . . 33 1 33 Cannon 225 | . . 21 49 64 18 2 41 18 12 . Launcher 30 | . . . 10 . . . . 15 5 . Special . | . . . . . . . . . . . Kinetic 225 | . . 21 49 64 18 2 41 18 12 . Thermal 67 | . . . . . . . . 33 1 33 Explosive 30 | . . . 10 . . . . 15 5 . Electromagnetic . | . . . . . . . . . . . Robot Hit Streak 34 | . . 8 10 16 10 5 7 34 11 13 Robot Miss Streak 7 | . . 1 5 7 5 1 5 1 6 2 Penetration Max . | . . . . . . . . . . . Secondary Targets . | . . . . . . . . . . . Shots Hit Robots 259 | . . 18 37 55 16 1 38 52 17 25 Core Hits 269 | . . 5 39 57 17 1 42 67 30 11 Critical Kills . | . . . . . . . . . . . Critical Parts Destroyed . | . . . . . . . . . . . Critical Strikes 7 | . . 2 3 . . . . . . 2 Burn 2 | . . . . . . . . . . 2 Blast 5 | . . 2 3 . . . . . . . Melee Attacks . | . . . . . . . . . . . Impact . | . . . . . . . . . . . Slashing . | . . . . . . . . . . . Piercing . | . . . . . . . . . . . Sneak Attacks . | . . . . . . . . . . . Combat Hostiles . | . . . . . . . . . . . Follow-up Attacks . | . . . . . . . . . . . Damage Inflicted 8369 | . . 320 1792 1135 352 6 713 2669 915 467 Guns 1356 | . . . . . . . . 876 20 460 Cannons 3791 | . . 316 592 1108 346 6 713 470 240 . Explosions 3151 | . . . 1189 . . . . 1323 639 . Melee . | . . . . . . . . . . . Ramming 71 | . . 4 11 27 6 . . . 16 7 Kinetic 3791 | . . 316 592 1108 346 6 713 470 240 . Thermal 1356 | . . . . . . . . 876 20 460 Explosive 3151 | . . . 1189 . . . . 1323 639 . Electromagnetic . | . . . . . . . . . . . Impact . | . . . . . . . . . . . Slashing . | . . . . . . . . . . . Piercing . | . . . . . . . . . . . Highest Corruption 4 | . . . 2 3 3 . . . . 4 Average Corruption 2 | . . . 2 2 3 . . . . 4 Corruption Purged . | . . . . . . . . . . . Corruption Blocked . | . . . . . . . . . . . Effects 60 | . . . 11 16 29 . . . . 4 Message Errors 11 | . . . 6 1 4 . . . . . Matter Fused 18 | . . . 3 6 8 . . . . 1 Heat Flow Errors 6 | . . . . 1 4 . . . . 1 Energy Discharges 10 | . . . 1 4 5 . . . . . Data Loss (minor) 7 | . . . . 2 5 . . . . . Data Loss (major) 2 | . . . . . 1 . . . . 1 Misfires 4 | . . . 1 1 1 . . . . 1 Weapon Failures 2 | . . . . 1 1 . . . . . Overload Shots . | . . . . . . . . . . . Overflow Damage 115 | . . 14 60 . . . . 40 1 . Projectiles 16 | . . 14 . . . . . 2 . . Explosions 99 | . . . 60 . . . . 38 1 . Melee . | . . . . . . . . . . . Knockbacks 46 | . . 1 4 14 3 . 12 . 12 . Impact . | . . . . . . . . . . . Kinetic 45 | . . 1 4 14 3 . 12 . 11 . Secondary 1 | . . . . . . . . . 1 . Self-Inflicted Damage 210 | . . . 45 . . . . 62 100 3 Shots 8 | . . . 1 . . . . 3 4 . Rammed 15 | . . 2 2 5 3 . . . 1 2 Targets Rammed 16 | . . 3 2 5 3 . . . 1 2 Kicked . | . . . . . . . . . . . Crushed 1 | . . 1 . . . . . . . . Highest Temperature 196 | . . 81 27 165 196 30 15 20 34 160 Average Temperature 46 | . . 45 7 50 77 18 8 11 8 33 Received Heat Transfer 1248 | . . 96 135 168 45 . 414 195 132 63 Siege Activations . | . . . . . . . . . . . Robots Corrupted . | . . . . . . . . . . . Combat Hostiles . | . . . . . . . . . . . Parts Fried . | . . . . . . . . . . . Impact Corruptions . | . . . . . . . . . . . Robots Melted 1 | . . . . . . . . . . 1 Combat Hostiles 1 | . . . . . . . . . . 1 Parts Melted 12 | . . . . . . . . 2 . 10 Heat Transferred 3216 | . . . . . . . . 1872 50 1294 Parts Sabotaged . | . . . . . . . . . . . Parts Stolen . | . . . . . . . . . . . Parts Stripped . | . . . . . . . . . . . Power Chain Reactions . | . . . . . . . . . . . Alert | -11 -10 -10 -9 -9 -9 -9 -6 -6 -6 -5 ------- Run | Yrd Mat Min Mat Sto Rec Scr Fac Low Low Fac Peak Influence 477 | . . 190 460 477 255 . 87 . . 174 Initial 163 | . . . 9 163 80 . . . . 88 Average 150 | . . 60 222 301 72 . 47 . . 108 Maximum Alert Level 2 | . . . 2 2 1 . . . . . Low Security (%) 66 | . 100 100 42 7 91 . 100 . . 100 Level 1 29 | . . . 43 85 8 . . . . . Level 2 4 | . . . 13 6 . . . . . . Level 3 . | . . . . . . . . . . . Level 4 . | . . . . . . . . . . . Level 5 . | . . . . . . . . . . . High Security . | . . . . . . . . . . . Max Security . | . . . . . . . . . . . Squads Dispatched 8 | . . . . 2 . . 1 . 1 4 Investigation 3 | . . . . . . . 1 . . 2 Extermination . | . . . . . . . . . . . Reinforcement 3 | . . . . 1 . . . . . 2 Assault 1 | . . . . . . . . . 1 . Garrison 1 | . . . . 1 . . . . . . Intercept . | . . . . . . . . . . . Searches Triggered . | . . . . . . . . . . . Construction Impeded . | . . . . . . . . . . . Haulers Reinforced . | . . . . . . . . . . . Active Scanning Responses . | . . . . . . . . . . . Cargo Convoy Interrupts . | . . . . . . . . . . . Stealth | -11 -10 -10 -9 -9 -9 -9 -6 -6 -6 -5 --------- Run | Yrd Mat Min Mat Sto Rec Scr Fac Low Low Fac Distress Signals 7 | . . . 3 3 . . . . . 1 Communications Jammed 6 | . . . . . . . 6 . . . Distress Signals . | . . . . . . . . . . . Times Spotted 102 | . . 13 28 16 3 . 6 14 14 8 Peak Tracking Total 7 | . . 3 5 3 2 . 3 7 7 3 Tactical Retreats 10 | . . 4 1 4 . . . . 1 . Traps | -11 -10 -10 -9 -9 -9 -9 -6 -6 -6 -5 ------- Run | Yrd Mat Min Mat Sto Rec Scr Fac Low Low Fac Traps Triggered 5 | . . . . 2 . . 1 . . 2 Indirectly . | . . . . . . . . . . . Trap Hack Attempts . | . . . . . . . . . . . Triggered . | . . . . . . . . . . . Disarmed . | . . . . . . . . . . . Reprogrammed . | . . . . . . . . . . . Reused 3 | . . 3 . . . . . . . . Traps Extracted . | . . . . . . . . . . . Installed 3 | . . 3 . . . . . . . . Triggered 3 | . . 3 . . . . . . . . Most Traps Carried 3 | . . 3 . . . . . . . . Machines | -11 -10 -10 -9 -9 -9 -9 -6 -6 -6 -5 ---------- Run | Yrd Mat Min Mat Sto Rec Scr Fac Low Low Fac Machines Disabled 4 | . . . 2 . . . . 1 . 1 Max in Single Turn 2 | . . . 2 . . . . 1 . 1 Machines Repaired . | . . . . . . . . . . . Machines Dismantled . | . . . . . . . . . . . Machines Sabotaged . | . . . . . . . . . . . Overloaded Fab Kills . | . . . . . . . . . . . Hacking | -11 -10 -10 -9 -9 -9 -9 -6 -6 -6 -5 --------- Run | Yrd Mat Min Mat Sto Rec Scr Fac Low Low Fac Machines Accessed 13 | . . . . 1 7 . 2 . . 3 Terminals 2 | . . . . 1 . . 1 . . . Fabricators 1 | . . . . . . . . . . 1 Repair Stations 2 | . . . . . . . . . . 2 Recycling Units 7 | . . . . . 7 . . . . . Scanalyzers . | . . . . . . . . . . . Garrison Access 1 | . . . . . . . 1 . . . Total Hacks 25 | . . . . 4 7 . 4 . . 10 Successful 10 | . . . . 1 7 . 1 . . 1 Failed 15 | . . . . 3 . . 3 . . 9 Catastrophic 3 | . . . . . . . . . . 3 Database Lockouts . | . . . . . . . . . . . Manual 8 | . . . . 1 7 . . . . . Terminals 5 | . . . . 4 . . 1 . . . Fabricators 3 | . . . . . . . . . . 3 Repair Stations 7 | . . . . . . . . . . 7 Recycling Units 7 | . . . . . 7 . . . . . Scanalyzers . | . . . . . . . . . . . Garrison Access 3 | . . . . . . . 3 . . . Terminal Hacks 2 | . . . . 1 . . 1 . . . Prototype ID Bank 1 | . . . . 1 . . . . . . Branch Access Points 1 | . . . . . . . 1 . . . Fabricator Hacks . | . . . . . . . . . . . Repair Station Hacks 1 | . . . . . . . . . . 1 Refit 1 | . . . . . . . . . . 1 Recycling Unit Hacks . | . . . . . . . . . . . Scanalyzer . | . . . . . . . . . . . Garrison Access Hacks . | . . . . . . . . . . . Unauthorized Hacks 7 | . . . . . 7 . . . . . Terminals . | . . . . . . . . . . . Fabricators . | . . . . . . . . . . . Repair Stations . | . . . . . . . . . . . Recycling Units 7 | . . . . . 7 . . . . . Tunnel 7 | . . . . . 7 . . . . . Scanalyzers . | . . . . . . . . . . . Garrison Access . | . . . . . . . . . . . Data Cores Recovered . | . . . . . . . . . . . Used . | . . . . . . . . . . . Hacking Detections 5 | . . . . 1 . . 1 . . 3 Full Trace Events 2 | . . . . . . . . . . 2 Feedback Events . | . . . . . . . . . . . Feedback Blocked . | . . . . . . . . . . . Robot Schematics Acquired . | . . . . . . . . . . . Robots Built . | . . . . . . . . . . . Authchips . | . . . . . . . . . . . Time . | . . . . . . . . . . . Total Robot Build Rating . | . . . . . . . . . . . Part Schematics Acquired . | . . . . . . . . . . . Parts Built . | . . . . . . . . . . . Authchips . | . . . . . . . . . . . Time . | . . . . . . . . . . . Total Part Build Rating . | . . . . . . . . . . . Parts Repaired . | . . . . . . . . . . . Time . | . . . . . . . . . . . Parts Recycled . | . . . . . . . . . . . Recycled Matter . | . . . . . . . . . . . Retrieved Matter . | . . . . . . . . . . . Retrieved Components . | . . . . . . . . . . . Parts Scanalyzed . | . . . . . . . . . . . Part Schematics Acquired . | . . . . . . . . . . . Parts Damaged . | . . . . . . . . . . . Bothacking | -11 -10 -10 -9 -9 -9 -9 -6 -6 -6 -5 ------------ Run | Yrd Mat Min Mat Sto Rec Scr Fac Low Low Fac Used RIF Installer . | . . . . . . . . . . . Robots Hacked . | . . . . . . . . . . . Non-combat . | . . . . . . . . . . . Combat . | . . . . . . . . . . . Robot Hacks Applied . | . . . . . . . . . . . Relay Couplers Released . | . . . . . . . . . . . Fabnet Peak Effective % . | . . . . . . . . . . . Robots Rewired 2 | . . . . . . . . 2 . . Allies Hacked . | . . . . . . . . . . . Hacks Repelled . | . . . . . . . . . . . Allies | -11 -10 -10 -9 -9 -9 -9 -6 -6 -6 -5 -------- Run | Yrd Mat Min Mat Sto Rec Scr Fac Low Low Fac Total Allies 2 | . . . . . . . . 2 . . Largest Group 2 | . . . . . . . . 2 . . Highest-Rated Group 59 | . . . . . . . . 59 . . Highest-Rated Ally 30 | . . . . . . . . 30 . . Total Orders . | . . . . . . . . . . . Ally Attacks 4 | . . . . . . . . 4 . . Total Damage 72 | . . . . . . . . 72 . . Kills 1 | . . . . . . . . 1 . . Allies Corrupted . | . . . . . . . . . . . Allies Melted . | . . . . . . . . . . . Intel | -11 -10 -10 -9 -9 -9 -9 -6 -6 -6 -5 ------- Run | Yrd Mat Min Mat Sto Rec Scr Fac Low Low Fac Robot Analysis Total . | . . . . . . . . . . . Derelict Logs Recovered 3 | . . 2 . . . . . 1 . . Drone Launches . | . . . . . . . . . . . Drone Recoveries . | . . . . . . . . . . . Exploration | -11 -10 -10 -9 -9 -9 -9 -6 -6 -6 -5 ------------- Run | Yrd Mat Min Mat Sto Rec Scr Fac Low Low Fac Turns Passed 8287 | . 90 750 1136 1200 1484 2051 468 494 139 475 Spaces Moved 3881 | 1 51 427 523 420 609 981 235 248 100 286 Core 176 | . . . . . . . . . 8 168 Treads 3333 | . 47 427 523 420 609 981 235 91 . . Legs 5 | 1 4 . . . . . . . . . Wheels 249 | . . . . . . . . 157 92 . Hover 118 | . . . . . . . . . . 118 Flight . | . . . . . . . . . . . Fastest Speed 50 | 120 120 160 160 160 160 160 160 100 50 50 Average Speed 190 | 120 156 160 185 238 237 207 160 138 100 130 Slowest Speed 300 | 120 160 160 240 240 240 240 160 240 115 300 Overloaded Moves . | . . . . . . . . . . . Propulsion Burnouts . | . . . . . . . . . . . Robots Hopped . | . . . . . . . . . . . Cave-ins Triggered . | . . . . . . . . . . . Exploration Rate (%) 40 | 1 13 82 48 44 99 81 6 41 18 10 Regions Visited 10 Branch Regions 6 Pre-discovered Areas 8 | . . 1 . . 7 . . . . . Known Exits Taken 2 | . . . . . . . 1 1 . . Unknown Exits Taken 8 | 1 1 1 1 1 1 1 . . 1 . Scrap Searched 10 | . . 1 . . . 5 . 3 1 . Spaces Dug . | . . . . . . . . . . . Terrain Destroyed 154 | . . . 78 . . . . 45 31 . Melee . | . . . . . . . . . . . Projectile . | . . . . . . . . . . . AOE 154 | . . . 78 . . . . 45 31 . Terrain Rammed . | . . . . . . . . . . . Walls Destroyed . | . . . . . . . . . . . Machines Disabled . | . . . . . . . . . . . Actions | -11 -10 -10 -9 -9 -9 -9 -6 -6 -6 -5 --------- Run | Yrd Mat Min Mat Sto Rec Scr Fac Low Low Fac Total 4429 | . 63 474 631 549 628 1000 284 326 118 356 Wait 145 | . . 6 18 81 . 3 13 . 2 22 Move 3871 | . 50 426 522 419 608 980 234 247 99 286 Hop . | . . . . . . . . . . . Pick Up 37 | . 3 9 9 2 . 5 4 . 1 4 Fast Attach 21 | . 2 . 5 1 1 3 4 1 1 3 Attach 33 | . 3 1 9 1 . 2 6 5 2 4 Detach 10 | . 2 . 4 . 2 . 1 . 1 . Swap 13 | . . . 2 4 2 . 1 3 1 . Drop 30 | . 3 5 4 4 3 6 . 1 . 4 Fire 215 | . . 21 56 32 9 1 21 49 10 16 Melee . | . . . . . . . . . . . Ram 3 | . . . . . . . . . 1 2 Kick . | . . . . . . . . . . . Crush 13 | . . 3 2 5 3 . . . . . Escape Stasis 15 | . . . . . . . . . . 15 Rewire 20 | . . . . . . . . 20 . . Trap 3 | . . 3 . . . . . . . . Miscellaneous . | . . . . . . . . . . . Route ------- -11/Scrapyard -10/Materials -10/Mines (discovered 2 exits: [*Mat x2]) -9/Materials (discovered 3 exits: [*Mat] / [*Min] / *Sto) -9/Storage -9/Recycling (discovered 2 exits: [*Fac] / *Scr) -9/Scraptown (discovered 2 exits: *Fac x2) -6/Factory (discovered 2 exits: *Low x2) -6/Lower Caves -6/Lower Caves -5/Factory History --------- Turn | Location | Event 1 | -11/Scrapyard | Discovered new exit (range 0) 1 | -11/Scrapyard | Entered Materials 37 | -10/Materials | Discovered new exit (range 13) 91 | -10/Materials | Entered Mines 103 | -10/Mines | Met a Derelict bent on vengeance 244 | -10/Mines | Discovered new exit (range 15) 314 | -10/Mines | Build established: Mutant 350 | -10/Mines | Found a hidden stash of uninstalled traps 365 | -10/Mines | Learned Materials terminal intel 490 | -10/Mines | Discovered new exit (range 13) 528 | -10/Mines | Learned location of Zion (-6) 841 | -10/Mines | Entered Materials 841 | -9/Materials | Evolved 2 slots: Utility x2 842 | -9/Materials | Loaded intel: 12 terminal locations 1507 | -9/Materials | Destroyed 7 combat bots 1553 | -9/Materials | Discovered new exit (range 11) 1848 | -9/Materials | Discovered new exit (range 8) 1965 | -9/Materials | Discovered new exit (range 6) 1977 | -9/Materials | Entered Storage 2061 | -9/Storage | Garrison activated, responded to threat 2512 | -9/Storage | Build established: Scavenger-Mutant 3168 | -9/Storage | Used back door to open Recycling access 3168 | -9/Storage | Discovered new exit (range 4) 3177 | -9/Storage | Entered Recycling 3258 | -9/Recycling | Scanned before Scraplab entrance 3843 | -9/Recycling | Discovered new exit (range 16) 4119 | -9/Recycling | Build established: Mutant 4659 | -9/Recycling | Discovered new exit (range 2) 4661 | -9/Recycling | Entered Scraptown 4661 | -9/Scraptown | System corruption cleaned by C-Scrubber 5008 | -9/Scraptown | Heard Great Nut preacher, LISTEN AND RECITE! 5187 | -9/Scraptown | Discovered new exit (range 11) 5424 | -9/Scraptown | Visited Awakened 5804 | -9/Scraptown | Visited Cyclists 5847 | -9/Scraptown | Visited IN-MT5's Study 5900 | -9/Scraptown | Visited UFD Registry 5900 | -9/Scraptown | Registered with UFD as "Bioback" 5934 | -9/Scraptown | Entered Cyclist Reading Room 6051 | -9/Scraptown | Visited Junk Repository 6143 | -9/Scraptown | Visited Chapter 10 6165 | -9/Scraptown | Visited Curators Association 6191 | -9/Scraptown | Visited Science Guys 6216 | -9/Scraptown | Visited Scrapoid Research Area 6239 | -9/Scraptown | Visited DA-N13 Charitable Foundation 6245 | -9/Scraptown | Found DCF Scrap (31 items) 6295 | -9/Scraptown | Visited Derelict Rescue Squad 6307 | -9/Scraptown | Found DRS Beacon 6341 | -9/Scraptown | Visited Scrapoid Pod Storage 6367 | -9/Scraptown | Visited Scrap Suit Storage 6410 | -9/Scraptown | Visited Science Testing Area 6490 | -9/Scraptown | Discovered new exit (range 5) 6712 | -9/Scraptown | Entered Factory 6712 | -6/Factory | Evolved 6 slots: Power x1, Propulsion x1, Utility x4 7050 | -6/Factory | Identified exit to Lower Caves 7180 | -6/Factory | Entered Lower Caves 7217 | -6/Lower Caves | Build established: Scavenger-Mutant 7237 | -6/Lower Caves | Learned Factory garrison access intel 7245 | -6/Lower Caves | Spotted B-75 Beast 7308 | -6/Lower Caves | Destroyed B-75 Beast 7333 | -6/Lower Caves | Lost 4 parts (3n1u) 7384 | -6/Lower Caves | Attracted the attention of an 0b10 outpost 7427 | -6/Lower Caves | Lost 3 parts (1p2w) 7431 | -6/Lower Caves | Destroyed 7 combat bots 7570 | -6/Lower Caves | Build established: Mutant 7654 | -6/Lower Caves | Attracted the attention of an 0b10 checkpoint 7666 | -6/Lower Caves | Discovered new exit (range 7) 7673 | -6/Lower Caves | Identified exit to Lower Caves 7674 | -6/Lower Caves | Entered another Lower Caves area 7789 | -6/Lower Caves | Attracted the attention of an 0b10 outpost 7798 | -6/Lower Caves | Discovered new exit (range 9) 7801 | -6/Lower Caves | Core integrity fell below 50% 7809 | -6/Lower Caves | Released all parts (4) 7811 | -6/Lower Caves | Core integrity fell below 20% 7813 | -6/Lower Caves | Entered Factory 7813 | -5/Factory | Evolved 2 slots: Utility x2 7814 | -5/Factory | Loaded intel: 4 garrison access locations 7838 | -5/Factory | Lost 8 parts (2n3u3w) 8288 | -5/Factory | Self-destructed Last Messages --------------- 08123_ H-66 Slayer destroyed. 08123_ Terminal disabled. 08138_ System corrupted: Substantial component data lost. 08162_ System corrupted: Matter fused (-5). 08167_ K-01 Serf collects debris. 08171_ Connecting with DSF Access... 08174_ K-01 Serf collects debris. 08215_ ALERT: Hostiles spotted, dispatching reinforcements to Terminal F005. 08219_ ALERT: Security rotation in progress. 08231_ ALERT: Cargo convoy en route, clear transfer corridor. 08249_ Connecting with Repair Station... 08249_ ALERT: Suspicious activity at Repair Station F006. Dispatching Investigation squad. 08279_ System corrupted: FCS attempts to trigger Thermic Laser. 08279_ System corrupted: Thermic Laser misfires. 08287_ Terminal disabled. Map ----- +----------------------------------------------------+ | ?????????????????????????????????????????????????? | | ?????????????????????????????????????????????????? | | ?????????????????????????????????????????????????? | | ?????????????????????????????????????????????????? | | ?????????????????????????????????????????????????? | | ?????????????????????????????????????????????????? | | ?????????????????????????????????????????????????? | | ?????????????????????????????????????????????????? | | ?????????????????????????????????????????????????? | | ?????????????????????????????????????????????????? | | ?????????????????????????????????????????????????? | | ?????????????????????????????????????????????????? | | ?????????????????????????????????????????????????? | | ?????????????????????????????????????????????????? | | ?????????????????????????????????????????????????? | | ????????????????????????????????????????????###### | | ????????????????????????????????????????????# | | ??????????????????????????##############????# | | ??????????????????????????# #????# | | ??????????????????????????# """ """ #????# | | ??????????????????????????# """ "R" #????# | | ??????????????????????????# """ " " #????# | | ??????????????????????????# #????# | | ????????????????????####### """ """ #????# | | ????????????????????# # """ """ #????# | | ????????????????????# @# """ """ #????# | | ????????????????????# ; #????# | | ????????????????????# # #????# | | ????????????????????# # #????###### | | ????????????????????# # #??????# | | ???????????????????## ###+################# | | ??????????????? ^ | | ??????????????? ^ | | ??????????????? g | | ???????????????" """ ^ | | ???????????????" """ g | | ??????????????????""g ############### T#### | | ?????????????????? ??????????????####??# | | ?????????????????""" """ ????????????????????#### | | ??????????????????"" """ ???????????????????????? | | ??????????????????????"" ???????????????????????? | | ?????????????????????? ?????????????????????????? | | ?????????????????????????????????????????????????? | | ?????????????????????????????????????????????????? | | ?????????????????????????????????????????????????? | | ?????????????????????????????????????????????????? | | ?????????????????????????????????????????????????? | | ?????????????????????????????????????????????????? | | ?????????????????????????????????????????????????? | | ?????????????????????????????????????????????????? | +----------------------------------------------------+ Best States ------------- Heat Dissipation 83 Energy Generation 21 Energy Capacity 265 Matter Stores 550 Matter Capacity 550 Sight Range 18 Terrain Scan Density 10 Jamming Range 12 Armor Coverage 150 Resistance: TH 10 Resistance: EM 15 Evasion (%) 50 Targeting Accuracy 8 Recoil Reduction 3 Item Schematics ----------------- None Robot Schematics ------------------ None Fabricated ------------ Nothing Alien Tech Used ----------------- None Achievements -------------- None Challenges ------------ None Game ------ Seed AblativeRefineryBasin Manual? 0 Play Time 00:34:44 Cumulative 145.7 hours Start 2024.10.27 @ 16:54:24 End 2024.10.27 @ 17:27:05 Sessions 1 Manual Loads 0 Difficulty Rogue Special Mode None Game No. 242 Rogue 241 Adventurer 1 Explorer 0 Win Type - Total 2 Types 2/0/0/0/0/0/0/0/0 Lore% 73 Gallery% 70 Achievement% 51 Wizard Run 0 Options --------- Layout 1 ASCII 0 Keyboard 0 Movement Mouse Keybinds 0 Fullscreen 2 Font 20/SmallcapsGlow Map View 54x42 Zoom Use 0% Tactical HUD 1 Map Filters NONE Filters NONE Steam 0 RUN: 2b68e2a0-7b57-4f8e-accd-f6558938d13a